bitfinex-derivatives/quotes_BTCF0:USTF0_20251217
["timestamp","ask_amount","ask_price","bid_price","bid_amount"]
[1765989364939,0.41186905,86360.0,86331.0,0.3608]
[1765989365144,0.3608,86375.0,86314.0,0.00417373]
[1765989365145,0.0115826,86364.0,86347.0,0.3608]
[1765989365437,0.3608,86365.0,86347.0,0.3608]
[1765989365950,0.011583,86361.0,86347.0,0.36097373]
[1765989366152,0.0115834,86358.0,86347.0,0.00017373]
[1765989366344,0.3608,86355.0,86347.0,3.73e-06]
[1765989366543,0.3608,86355.0,86347.0,0.01458853]
[1765989366744,0.36091408,86365.0,86347.0,0.01458853]
[1765989367047,0.0115827,86364.0,86347.0,0.01458853]
[1765989367244,0.0115827,86364.0,86347.0,0.00300373]
[1765989367438,0.36091408,86365.0,86347.0,0.00300373]
[1765989367642,0.3608,86356.0,86338.0,0.19413]
[1765989367856,0.37249648,86365.0,86315.0,0.02889415]
[1765989367857,0.3608,86339.0,86315.0,0.02889415]
[1765989368048,0.10238701,86369.0,86310.0,0.22883881]
[1765989368049,0.22883881,86380.0,86338.0,0.7216]
[1765989368246,0.33192368,86380.0,86369.0,0.3608]
[1765989368443,0.3608,86370.0,86356.0,0.0115836]
[1765989368755,0.47546537,86380.0,86367.0,0.3608]
[1765989368756,0.00017373,86372.0,86367.0,0.3608]
[1765989369046,3e-08,86372.0,86367.0,0.3608]
[1765989369450,0.3608,86369.0,86360.0,0.3608]
[1765989369653,0.3608,86369.0,86354.0,0.00017373]
[1765989369654,0.3608,86361.0,86354.0,0.00017373]
[1765989370054,0.3608,86369.0,86357.0,0.3608]
[1765989370351,0.36080003,86372.0,86361.0,0.0115829]
[1765989370547,0.36080003,86372.0,86357.0,0.3723834]
[1765989370744,0.22883881,86370.0,86354.0,0.00017373]
[1765989371346,0.3608,86365.0,86354.0,0.00017373]
[1765989371546,0.22883881,86364.0,86354.0,0.00017373]
[1765989371749,0.0115831,86360.0,86347.0,0.3608]
[1765989371948,0.0115835,86357.0,86340.0,0.3608]
[1765989372144,0.0115844,86350.0,86340.0,0.3608]
[1765989372348,0.3608,86358.0,86340.0,0.3608]
[1765989372545,0.3608,86369.0,86350.0,0.3608]
[1765989372755,0.4538733,86380.0,86333.0,0.0288273]
[1765989372756,0.3608,86352.0,86351.0,3e-08]
[1765989372946,0.58963881,86360.0,86351.0,3e-08]
[1765989372947,0.3608,86360.0,86351.0,3e-08]
[1765989373251,0.0115832,86359.0,86351.0,3e-08]
[1765989373456,0.3608,86360.0,86351.0,3e-08]
[1765989373846,0.0115852,86345.0,86340.0,3e-08]
[1765989374041,0.3608,86345.0,86340.0,3e-08]
[1765989374656,0.3608,86353.0,86340.0,3e-08]
[1765989374846,0.3608,86353.0,86338.0,0.0115859]
[1765989375155,0.3944682,86400.0,86346.0,0.7216]
[1765989375156,0.10623723,86361.0,86346.0,0.7216]
[1765989375354,0.10623723,86361.0,86338.0,0.00017373]
[1765989375355,0.3608,86358.0,86338.0,0.36097373]
[1765989375561,0.3608,86358.0,86341.0,0.0115855]
[1765989375746,0.3608,86358.0,86338.0,0.36097373]
[1765989375945,0.011584,86354.0,86338.0,0.36097373]
[1765989376256,0.3608,86344.0,86338.0,3e-08]
[1765989377057,0.3608,86351.0,86338.0,3e-08]
[1765989377352,0.00017373,86353.0,86341.0,0.0115855]
[1765989377654,0.3608,86361.0,86346.0,0.3608]
[1765989378948,0.3608,86369.0,86356.0,0.3608]
[1765989379256,0.05888253,86410.0,86338.0,0.02941409]
[1765989379257,0.3608,86374.0,86361.0,0.3608]
[1765989379560,0.3723813,86374.0,86361.0,0.3608]
[1765989379943,0.3608,86384.0,86368.0,0.3608]
[1765989379944,0.00017373,86376.0,86368.0,0.3608]
[1765989380153,3.73e-06,86376.0,86368.0,0.3608]
[1765989381652,0.00100373,86376.0,86368.0,0.3608]
[1765989381860,0.00100373,86376.0,86370.0,0.3608]
[1765989382857,0.00100373,86376.0,86359.0,0.00017373]
[1765989382858,0.3608,86373.0,86359.0,0.00017373]
[1765989383058,0.3608,86363.0,86359.0,0.00017373]
[1765989383257,0.3608,86363.0,86340.0,0.33557927]
[1765989383258,0.3608,86361.0,86328.0,0.3608]
[1765989383447,0.3608,86361.0,86350.0,4e-05]
[1765989385162,0.00017373,86364.0,86350.0,4e-05]
[1765989386157,0.001,86376.0,86356.0,0.3608]
[1765989386357,0.3608,86364.0,86356.0,0.19413]
[1765989386559,0.3608,86364.0,86350.0,4e-05]
[1765989386752,0.001,86376.0,86350.0,0.33561927]
[1765989386753,0.3608,86369.0,86350.0,0.33561927]
[1765989386954,0.3608,86369.0,86360.0,0.011583]
[1765989387158,0.3608,86369.0,86359.0,0.0115832]
[1765989387468,0.3608,86369.0,86361.0,0.0115828]
[1765989387862,0.00011781,86373.0,86362.0,0.3608]
[1765989388258,0.3608,86380.0,86362.0,0.3608]
[1765989388467,0.0115806,86379.0,86369.0,0.3608]
[1765989388669,0.3608,86380.0,86369.0,0.3608]
[1765989388862,0.3608,86392.0,86379.0,0.3608]
[1765989389071,0.0291778,86410.0,86392.0,0.0115787]
[1765989389263,0.0291778,86410.0,86400.0,0.3608]
[1765989389469,0.0291778,86410.0,86403.0,0.0115772]
[1765989389669,0.3608,86413.0,86406.0,0.0115769]
[1765989389868,0.3608,86413.0,86400.0,0.3608]
[1765989389869,0.3608,86430.0,86419.0,0.0115751]
[1765989390067,0.09374112,86434.0,86429.0,0.19413]
[1765989390374,0.09374112,86434.0,86426.0,0.3608]
[1765989390567,0.3608,86429.0,86416.0,0.36097362]
[1765989390758,0.3608,86439.0,86416.0,0.36097362]
[1765989390962,0.3608,86449.0,86434.0,0.3608]
[1765989391165,0.011571,86451.0,86434.0,0.3608]
[1765989391567,0.3608,86458.0,86442.0,0.3608]
[1765989391772,0.0115705,86454.0,86442.0,0.3608]
[1765989391973,0.3608,86449.0,86418.0,0.3608]
[1765989392188,0.3608,86420.0,86416.0,0.002]
[1765989392873,0.3608,86434.0,86416.0,0.3628]
[1765989393071,0.3608,86434.0,86423.0,0.3608]
[1765989393271,0.3608,86434.0,86416.0,0.36297352]
[1765989393272,0.3608,86426.0,86416.0,0.36297352]
[1765989393469,0.3608,86419.0,86416.0,0.00017352]
[1765989393783,0.3608,86419.0,86416.0,2e-08]
[1765989393977,0.36080291,86434.0,86416.0,2e-08]
[1765989394172,0.001,86434.0,86433.0,0.3608]
[1765989394475,0.3608,86466.0,86433.0,0.3608]
[1765989394674,0.3608,86456.0,86433.0,0.3608]
[1765989394862,0.3608,86446.0,86433.0,0.3608]
[1765989395268,0.0115692,86464.0,86445.0,0.3608]
[1765989395578,0.0115695,86462.0,86445.0,0.3608]
[1765989395764,0.3608,86465.0,86441.0,0.3608]
[1765989395965,0.05839928,86542.0,86477.0,0.0115674]
[1765989395966,0.33557927,86510.0,86477.0,0.0115674]
[1765989396187,1.45039114,86538.0,86457.0,0.01157]
[1765989396188,0.0115755,86516.0,86470.0,0.33557927]
[1765989396369,0.00231114,86538.0,86500.0,0.33557927]
[1765989396677,0.00231114,86538.0,86504.0,0.0115638]
[1765989396977,0.00231114,86538.0,86511.0,0.0115629]
[1765989397172,0.01133667,86531.0,86502.0,0.00017341]
[1765989397374,0.00231114,86538.0,86520.0,0.33557927]
[1765989397575,4e-08,86538.0,86528.0,0.0115605]
[1765989397777,0.02228,86557.0,86528.0,0.33557927]
[1765989397968,0.09212851,86566.0,86540.0,0.33557927]
[1765989398170,0.02938701,86586.0,86561.0,0.0115561]
[1765989398378,0.02938701,86586.0,86565.0,0.00017331]
[1765989398679,0.33557927,86580.0,86565.0,0.00017331]
[1765989398976,0.0115525,86589.0,86565.0,3.31e-06]
[1765989399176,0.33557927,86590.0,86565.0,3.31e-06]
[1765989399177,0.0115532,86584.0,86565.0,3.31e-06]
[1765989399484,0.0115542,86576.0,86565.0,3.31e-06]
[1765989399684,0.30708,86585.0,86565.0,3.31e-06]
[1765989399977,0.0115549,86571.0,86565.0,3.31e-06]
[1765989400380,0.0115558,86564.0,86542.0,0.005]
[1765989400570,0.30708,86585.0,86542.0,0.005]
[1765989400882,0.30708,86585.0,86486.0,0.04101892]
[1765989400883,0.005,86564.0,86509.0,0.011563]
[1765989401182,0.005,86564.0,86500.0,0.03448905]
[1765989401183,0.011558,86548.0,86500.0,0.03448905]
[1765989401380,0.0001726,86545.0,86528.0,0.00017331]
[1765989401772,0.01164898,86545.0,86528.0,0.00017331]
[1765989402075,0.01164898,86545.0,86537.0,0.3608]
[1765989402882,0.0001726,86545.0,86537.0,0.3608]
[1765989403570,0.3608,86562.0,86537.0,0.3608]
[1765989403571,0.3608,86562.0,86544.0,0.3608]
[1765989404076,0.3608,86562.0,86537.0,0.3608]
[1765989404077,0.3608,86554.0,86537.0,0.3608]
[1765989404278,0.3608,86562.0,86553.0,0.3608]
[1765989404482,0.3608,86554.0,86537.0,0.3608]
[1765989404673,0.3608,86554.0,86544.0,0.001]
[1765989405183,0.3608,86554.0,86537.0,0.36097331]
[1765989405884,0.3608,86543.0,86533.0,0.3608]
[1765989406082,0.3608,86543.0,86526.0,0.3608]
[1765989406385,0.3608,86543.0,86531.0,0.0115602]
[1765989406678,0.3608,86554.0,86534.0,0.3608]
[1765989406885,0.3608,86563.0,86544.0,0.001]
[1765989407073,0.3608,86563.0,86542.0,0.3608]
[1765989407074,0.00017331,86553.0,86542.0,0.19513]
[1765989407887,0.00017331,86553.0,86549.0,0.3608]
[1765989408085,0.00017331,86553.0,86551.0,0.3723574]
[1765989408086,1e-08,86553.0,86551.0,0.3723574]
[1765989408283,1e-08,86553.0,86542.0,0.001]
[1765989408485,1e-08,86553.0,86550.0,0.3608]
[1765989408977,1e-08,86553.0,86543.0,0.3608]
[1765989409178,0.3608,86551.0,86542.0,0.001]
[1765989409678,1e-08,86553.0,86542.0,0.001]
[1765989409679,1e-08,86553.0,86542.0,0.0125586]
[1765989409872,1e-08,86553.0,86542.0,0.001]
[1765989413382,0.09405164,86574.0,86542.0,0.001]
[1765989413383,0.3608,86577.0,86550.0,0.3608]
[1765989413581,0.05,86595.0,86569.0,0.3608]
[1765989413775,0.05,86595.0,86576.0,0.3608]
[1765989413776,0.06167891,86595.0,86576.0,0.3608]
[1765989414080,0.0115523,86591.0,86576.0,0.3608]
[1765989414292,0.06167891,86595.0,86584.0,0.3608]
[1765989414490,0.0115518,86594.0,86584.0,0.3608]
[1765989414685,0.3608,86591.0,86581.0,3.31e-06]
[1765989414991,0.3608,86582.0,86565.0,0.3608]
[1765989415188,0.3608,86573.0,86565.0,0.3608]
[1765989415488,0.3608,86573.0,86554.0,0.3608]
[1765989415787,0.3608,86563.0,86555.0,0.00017331]
[1765989416188,0.00017331,86572.0,86555.0,0.00017331]
[1765989416394,0.3608,86602.0,86571.0,0.3608]
[1765989416591,0.3608,86587.0,86571.0,0.3608]
[1765989416795,0.42247891,86595.0,86571.0,0.3608]
[1765989416987,0.0115522,86591.0,86571.0,0.3608]
[1765989417189,0.42247891,86595.0,86571.0,0.3608]
[1765989417487,0.3608,86588.0,86574.0,3.31e-06]
[1765989417685,0.06167891,86595.0,86578.0,0.3608]
[1765989417890,0.06167891,86595.0,86586.0,0.3608]
[1765989418295,0.05,86595.0,86586.0,0.3608]
[1765989418480,0.0611529,86595.0,86586.0,0.3608]
[1765989418680,0.0611529,86595.0,86588.0,0.3608]
[1765989418681,0.05,86595.0,86588.0,0.3608]
[1765989418988,0.05,86595.0,86574.0,3.31e-06]
[1765989418989,0.3608,86590.0,86574.0,3.31e-06]
[1765989419189,0.05,86595.0,86574.0,3.31e-06]
[1765989419190,0.06156136,86595.0,86577.0,0.3608]
[1765989419397,0.05,86595.0,86586.0,0.3608]
[1765989419592,0.06117458,86595.0,86586.0,0.3608]
[1765989420094,0.3608,86592.0,86579.0,0.3608]
[1765989420496,0.3723521,86592.0,86579.0,0.3608]
[1765989420690,0.3723521,86592.0,86574.0,3.31e-06]
[1765989420691,0.3608,86585.0,86574.0,3.31e-06]
[1765989420896,0.3608,86575.0,86555.0,0.3608]
[1765989421198,0.3608,86585.0,86565.0,0.3608]
[1765989421491,0.05,86595.0,86580.0,0.3608]
[1765989421693,0.005,86605.0,86592.0,0.3608]
[1765989421998,0.3608,86604.0,86593.0,0.0115519]
[1765989422193,0.3608,86604.0,86590.0,0.00017331]
[1765989422194,0.0115522,86591.0,86590.0,0.00017331]
[1765989422388,0.0115527,86588.0,86556.0,0.0115568]
[1765989422586,0.0115527,86588.0,86544.0,0.3608]
[1765989422587,0.3608,86582.0,86568.0,0.3608]
[1765989422783,0.0115509,86601.0,86568.0,0.3608]
[1765989422784,0.0115513,86598.0,86580.0,0.3608]
[1765989422988,0.3608,86601.0,86588.0,0.19413]
[1765989423287,0.3608,86601.0,86586.0,0.00017331]
[1765989423490,0.0115526,86589.0,86586.0,1e-08]
[1765989423692,0.3608,86590.0,86586.0,1e-08]
[1765989423693,0.3608,86587.0,86586.0,1e-08]
[1765989424187,0.3608,86601.0,86586.0,1e-08]
[1765989424486,0.3608,86594.0,86586.0,1e-08]
[1765989424688,0.3608,86592.0,86586.0,1e-08]
[1765989424887,0.0115547,86573.0,86553.0,0.3608]
[1765989425101,0.3608,86563.0,86553.0,0.3608]
[1765989425301,0.3608,86575.0,86561.0,0.3608]
[1765989425596,0.3608,86587.0,86569.0,0.3608]
[1765989425799,0.36097331,86587.0,86570.0,0.011555]
[1765989426093,0.0115496,86611.0,86585.0,0.3608]
[1765989426295,1e-07,86605.0,86597.0,0.3608]
[1765989426488,1e-07,86605.0,86583.0,0.005]
[1765989426489,0.3608,86598.0,86588.0,0.0115525]
[1765989426799,1e-07,86605.0,86597.0,0.3608]
[1765989426986,1e-07,86605.0,86604.0,0.3608]
[1765989427502,0.3608,86639.0,86604.0,0.3608]
[1765989427690,0.3723455,86641.0,86631.0,0.3608]
[1765989427894,0.3723455,86641.0,86618.0,0.3608]
[1765989427895,0.3608,86644.0,86625.0,0.3608]
[1765989428094,0.3608,86654.0,86643.0,0.0115452]
[1765989428291,0.0115434,86657.0,86640.0,0.69410121]
[1765989428487,0.00017307,86657.0,86640.0,0.3725188]
[1765989428690,0.3608,86656.0,86640.0,0.3609732]
[1765989429090,0.3608,86646.0,86633.0,0.3608]
[1765989429401,0.3608,86642.0,86630.0,0.33330121]
[1765989429597,0.3608,86653.0,86642.0,0.0115453]
[1765989429994,0.00017307,86657.0,86640.0,0.33330121]
[1765989430191,0.3608,86653.0,86640.0,0.0001732]
[1765989430395,0.0115446,86649.0,86640.0,0.0001732]
[1765989430698,0.00017307,86657.0,86648.0,0.3608]
[1765989430905,0.24596707,86660.0,86649.0,0.0115444]
[1765989431105,0.24596707,86660.0,86656.0,0.3608]
[1765989431106,0.07929707,86660.0,86656.0,0.3608]
[1765989431396,0.55492,86687.0,86630.0,0.33330121]
[1765989431397,0.3608,86659.0,86630.0,0.33330121]
[1765989431599,0.3608,86645.0,86633.0,0.0115465]
[1765989431798,0.3608,86659.0,86632.0,0.3608]
[1765989431799,0.3608,86659.0,86639.0,0.3608]
[1765989431990,0.3608,86663.0,86639.0,0.3608]
[1765989431991,9e-08,86658.0,86648.0,0.3608]
[1765989432191,9e-08,86658.0,86657.0,0.3608]
[1765989432499,0.005,86688.0,86657.0,0.3608]
[1765989432702,0.005,86688.0,86676.0,0.3608]
[1765989432894,0.005,86688.0,86676.0,0.3723407]
[1765989433202,0.00230687,86698.0,86686.0,0.3608]
[1765989433700,0.3608,86693.0,86686.0,0.3608]
[1765989433902,0.00230687,86698.0,86686.0,0.3608]
[1765989434100,0.3608,86717.0,86694.0,0.0115385]
[1765989434404,0.3608,86739.0,86716.0,0.3608]
[1765989434600,0.3608,86720.0,86704.0,0.3608]
[1765989435303,0.3608,86707.0,86684.0,0.3608]
[1765989435498,0.3608,86690.0,86676.0,0.3608]
[1765989435893,0.001,86698.0,86684.0,0.3608]
[1765989436102,0.30624,86719.0,86684.0,0.3608]
[1765989436103,0.3608,86734.0,86697.0,0.3608]
[1765989436302,0.3608,86734.0,86671.0,0.0115414]
[1765989436303,0.001,86720.0,86711.0,0.3608]
[1765989436504,0.23204148,86730.0,86719.0,0.3608]
[1765989436505,0.005,86730.0,86719.0,0.3608]
[1765989436696,0.01388667,86738.0,86724.0,0.0115344]
[1765989436697,0.00230581,86738.0,86724.0,0.0115344]
[1765989436897,0.3608,86747.0,86733.0,0.3608]
[1765989437293,0.3608,86747.0,86715.0,0.40504]
[1765989437294,0.3608,86734.0,86713.0,0.3608]
[1765989437505,0.3608,86714.0,86690.0,0.011539]
[1765989437803,0.3608,86718.0,86702.0,0.00017299]
[1765989438108,0.3608,86716.0,86708.0,0.22704148]
[1765989438298,0.3608,86728.0,86711.0,0.3608]
[1765989438816,0.0115341,86727.0,86711.0,0.3608]
[1765989439010,0.005,86730.0,86712.0,0.011536]
[1765989439309,0.001,86747.0,86729.0,0.0115337]
[1765989439507,0.0113644,86749.0,86733.0,0.3608]
[1765989439706,0.3608,86751.0,86729.0,0.00017299]
[1765989439707,0.22704148,86743.0,86729.0,0.00017299]
[1765989440003,0.22704148,86743.0,86677.0,0.0115406]
[1765989440004,0.47252,86762.0,86711.0,0.0115361]
[1765989440205,0.001,86730.0,86710.0,0.22704148]
[1765989440401,0.001,86730.0,86706.0,0.0115368]
[1765989440607,0.3618,86730.0,86711.0,0.3608]
[1765989440903,0.49570889,86762.0,86725.0,0.0115342]
[1765989440904,0.3608,86745.0,86725.0,0.0115342]
[1765989441096,0.3608,86757.0,86730.0,0.22704148]
[1765989441097,0.3608,86748.0,86730.0,0.22704148]
[1765989441296,0.0115314,86748.0,86737.0,0.3608]
[1765989441494,0.22704148,86760.0,86711.0,0.3608]
[1765989441495,0.3608,86740.0,86711.0,0.3608]
[1765989441699,0.3608,86720.0,86711.0,0.0115362]
[1765989441994,0.3608,86736.0,86710.0,0.22704148]
[1765989441995,0.0115344,86725.0,86719.0,0.3608]
[1765989442194,0.0115341,86727.0,86719.0,0.242518]
[1765989442502,0.0115352,86719.0,86707.0,0.00017299]
[1765989442701,0.3608,86710.0,86707.0,9e-08]
[1765989443412,0.3608,86720.0,86707.0,0.36080009]
[1765989443611,0.0001729,86722.0,86717.0,0.3608]
[1765989443904,0.3723353,86718.0,86707.0,0.00100009]
[1765989444107,0.3608,86718.0,86707.0,0.00100009]
[1765989444401,0.3608,86708.0,86707.0,9e-08]
[1765989444708,0.3608,86709.0,86707.0,9e-08]
[1765989444906,0.0001729,86722.0,86707.0,0.36080009]
[1765989445107,0.0001729,86722.0,86707.0,0.3608]
[1765989445305,1e-07,86722.0,86710.0,0.22704148]
[1765989445502,0.005,86730.0,86721.0,0.3608]
[1765989445702,0.005,86730.0,86712.0,0.3608]
[1765989446004,0.23204148,86730.0,86712.0,0.3608]
[1765989446204,0.23204148,86730.0,86713.0,0.3608]
[1765989446205,0.005,86730.0,86713.0,0.3608]
[1765989446409,0.005,86730.0,86717.0,0.0115354]
[1765989446604,0.005,86730.0,86713.0,0.36097299]
[1765989446910,0.3608,86750.0,86737.0,0.0115327]
[1765989447097,0.01155646,86752.0,86739.0,0.3608]
[1765989447300,0.3723301,86757.0,86739.0,0.3608]
[1765989447609,0.3608,86757.0,86740.0,0.23857378]
[1765989447794,0.22704148,86760.0,86747.0,0.3608]
[1765989447999,0.3723297,86760.0,86740.0,0.0115323]
[1765989448208,0.59920543,86760.0,86739.0,0.3608]
[1765989448413,0.0115306,86753.0,86739.0,0.3608]
[1765989448598,0.01136395,86760.0,86747.0,0.3608]
[1765989448800,0.58784148,86760.0,86747.0,0.3608]
[1765989449016,0.3608,86750.0,86735.0,0.00017299]
[1765989449316,0.3608,86750.0,86740.0,0.22704148]
[1765989449516,0.3608,86750.0,86735.0,0.00017299]
[1765989450511,0.3608,86743.0,86735.0,0.00017299]
[1765989450712,0.3608,86743.0,86727.0,0.3608]
[1765989451212,0.3608,86736.0,86727.0,0.3608]
[1765989451404,0.3608,86736.0,86727.0,0.372334]
[1765989451602,0.01170106,86748.0,86727.0,0.372334]
[1765989451603,0.00016976,86748.0,86735.0,0.3608]
[1765989451803,0.3608,86741.0,86717.0,0.3608]
[1765989452025,0.3608,86741.0,86720.0,0.22704148]
[1765989452311,0.3608,86741.0,86726.0,0.0115341]
[1765989452519,0.3608,86741.0,86725.0,0.3608]
[1765989452702,0.00116976,86748.0,86725.0,0.3608]
[1765989452900,0.0115323,86741.0,86732.0,0.3608]
[1765989453114,0.3608,86738.0,86728.0,0.00017289]
[1765989453300,0.3608,86738.0,86720.0,0.001]
[1765989453301,0.3608,86729.0,86720.0,0.001]
[1765989453501,0.3608,86722.0,86709.0,0.0115365]
[1765989453705,0.3608,86722.0,86700.0,0.3608]
[1765989453706,0.3608,86715.0,86700.0,0.3608]
[1765989453917,0.0115368,86707.0,86687.0,0.02812402]
[1765989454106,0.3608,86712.0,86691.0,0.3608]
[1765989454308,0.01282284,86717.0,86699.0,0.3608]
[1765989454505,0.58784148,86720.0,86693.0,0.000173]
[1765989454506,0.0117094,86710.0,86693.0,0.000173]
[1765989454716,0.3608,86694.0,86684.0,8e-08]
[1765989454907,0.3723397,86685.0,86684.0,8e-08]
[1765989455111,0.3723397,86685.0,86658.0,0.00230794]
[1765989455112,0.7216,86685.0,86658.0,0.00230794]
[1765989455311,0.3608,86668.0,86658.0,0.00230794]
[1765989455709,0.3608,86659.0,86658.0,0.00230794]
[1765989455911,0.000173,86667.0,86658.0,0.00230794]
[1765989456112,0.3608,86675.0,86662.0,0.0115427]
[1765989456414,0.3608,86675.0,86661.0,0.3608]
[1765989457019,5.944e-05,86674.0,86661.0,0.3608]
[1765989457229,0.0115421,86667.0,86658.0,0.00230794]
[1765989457521,0.011543,86660.0,86650.0,0.000173]
[1765989457724,5.944e-05,86659.0,86650.0,0.000173]
[1765989457906,5.944e-05,86659.0,86650.0,3e-06]
[1765989458705,5.944e-05,86659.0,86633.0,0.3608]
[1765989458706,0.3608,86651.0,86633.0,0.3608]
[1765989459118,0.3608,86642.0,86625.0,0.005]
[1765989459319,5.944e-05,86641.0,86625.0,0.005]
[1765989459720,5.944e-05,86641.0,86630.0,0.22704148]
[1765989459914,0.001,86659.0,86625.0,0.005]
[1765989459915,0.3608,86658.0,86636.0,0.0115462]
[1765989460217,0.3608,86658.0,86644.0,0.3608]
[1765989460428,0.001,86659.0,86648.0,0.0115445]
[1765989460612,0.3608,86665.0,86654.0,0.3608]
[1765989460921,0.0001731,86668.0,86654.0,0.3608]
[1765989461223,0.0001731,86668.0,86662.0,0.3608]
[1765989461410,0.0001731,86668.0,86651.0,0.0001731]
[1765989461411,0.3608,86663.0,86651.0,0.0001731]
[1765989461615,0.0001731,86668.0,86661.0,0.3608]
[1765989462018,0.0011731,86668.0,86661.0,0.3608]
[1765989462215,0.0011731,86668.0,86663.0,0.3608]
[1765989462417,3.1e-06,86668.0,86663.0,0.3608]
[1765989462723,0.25604,86684.0,86663.0,0.3608]
[1765989462911,0.25604,86684.0,86671.0,0.3608]
[1765989462912,0.0115403,86681.0,86671.0,0.3608]
[1765989463111,0.3608,86676.0,86663.0,0.3608]
[1765989463413,0.3608,86676.0,86642.0,0.3608]
[1765989463414,0.3608,86665.0,86642.0,0.3608]
[1765989463611,0.3608,86655.0,86642.0,0.3608]
[1765989463813,0.3608,86648.0,86633.0,0.3608]
[1765989464122,0.0115418,86669.0,86647.0,0.7331446]
[1765989464309,0.001,86668.0,86661.0,0.3608]
[1765989464515,0.01308492,86681.0,86666.0,0.3608]
[1765989464729,0.005,86688.0,86666.0,0.3608]
[1765989464730,0.005,86688.0,86677.0,0.18158]
[1765989465123,0.005,86688.0,86678.0,0.0115406]
[1765989465317,0.005,86688.0,86677.0,0.18158]
[1765989465919,0.0115399,86684.0,86677.0,0.18158]
[1765989466118,0.3608,86687.0,86674.0,0.0001731]
[1765989466432,0.0115396,86686.0,86674.0,0.0001731]
[1765989466725,0.0001731,86691.0,86684.0,0.3608]
[1765989466928,0.3608,86717.0,86698.0,0.0115379]
[1765989467128,0.3608,86709.0,86695.0,0.3608]
[1765989467329,0.3608,86709.0,86690.0,0.23858038]
[1765989467330,0.3608,86702.0,86691.0,0.3608]
[1765989467521,0.3608,86702.0,86684.0,0.3608]
[1765989467718,0.0115379,86699.0,86684.0,0.3608]
[1765989468124,0.0115383,86696.0,86684.0,0.3608]
[1765989468324,0.3608,86694.0,86683.0,3e-06]
[1765989469630,0.011539,86690.0,86681.0,0.359973]
[1765989470128,0.3608,86694.0,86667.0,0.3608]
[1765989470129,0.3608,86682.0,86667.0,0.3608]
[1765989470439,0.3608,86682.0,86660.0,0.22704148]
[1765989470440,0.0115406,86679.0,86669.0,0.3608]
[1765989470622,0.3608,86671.0,86665.0,0.000173]
[1765989470826,0.3608,86671.0,86647.0,0.3608]
[1765989470827,0.3608,86669.0,86647.0,0.3608]
[1765989471136,0.3608,86671.0,86639.0,0.72856]
[1765989471137,0.3608,86655.0,86643.0,0.3608]
[1765989471321,0.0115432,86659.0,86642.0,0.3608]
[1765989471515,0.22704148,86660.0,86642.0,0.3608]
[1765989471732,0.22704148,86660.0,86642.0,0.3609731]
[1765989471733,0.3608,86653.0,86642.0,0.3609731]
[1765989472029,0.3608,86643.0,86620.0,0.22704148]
[1765989472333,0.3608,86626.0,86618.0,9.408e-05]
[1765989472626,0.0115489,86617.0,86590.0,0.22704148]
[1765989472830,0.0115497,86610.0,86580.0,0.22704148]
[1765989473029,0.0115502,86607.0,86595.0,0.0001732]
[1765989473231,0.0115512,86599.0,86595.0,3.2e-06]
[1765989473430,9.408e-05,86598.0,86595.0,3.2e-06]
[1765989474128,0.0115514,86597.0,86595.0,3.2e-06]
[1765989474329,9.408e-05,86598.0,86583.0,3.2e-06]
[1765989474330,0.011552,86593.0,86583.0,3.2e-06]
[1765989474529,0.7216,86584.0,86555.0,0.02456128]
[1765989474737,0.3608,86560.0,86550.0,0.00011335]
[1765989474920,0.02926,86568.0,86555.0,0.3608]
[1765989475230,0.02926,86568.0,86553.0,0.0001732]
[1765989475418,0.0001732,86570.0,86563.0,0.3608]
[1765989475618,0.2208,86579.0,86569.0,0.3608]
[1765989475825,0.22704148,86590.0,86560.0,0.22704148]
[1765989476022,0.3608,86577.0,86564.0,0.3608]
[1765989476519,1.10468,86587.0,86574.0,0.3608]
[1765989476720,1.10468,86587.0,86564.0,0.3608]
[1765989476721,0.3608,86587.0,86572.0,0.0001732]
[1765989476922,0.0001732,86589.0,86572.0,0.0001732]
[1765989477228,0.0001732,86589.0,86581.0,0.3608]
[1765989477432,0.0001732,86589.0,86588.0,0.3608]
[1765989477731,0.01286111,86599.0,86588.0,0.3608]
[1765989478031,0.005,86605.0,86595.0,0.3608]
[1765989478626,0.0001732,86609.0,86595.0,0.3608]
[1765989479738,0.3608,86604.0,86591.0,0.0001732]
[1765989480334,0.3608,86594.0,86591.0,3.2e-06]
[1765989480633,0.3608,86604.0,86593.0,0.3608]
[1765989480835,0.0001732,86609.0,86593.0,0.3608]
[1765989481136,1.44416,86630.0,86591.0,3.2e-06]
[1765989481137,0.3608,86629.0,86608.0,0.3608]
[1765989481329,0.3608,86629.0,86620.0,0.19413]
[1765989481527,0.3608,86634.0,86620.0,0.3608]
[1765989481728,0.3608,86644.0,86629.0,0.3608]
[1765989482034,0.3608,86644.0,86625.0,0.0001732]
[1765989482035,0.3608,86637.0,86625.0,0.0001732]
[1765989482226,0.3608,86637.0,86629.0,0.3608]
[1765989482431,0.01277301,86639.0,86629.0,0.3608]
[1765989482636,0.01277301,86639.0,86625.0,3.2e-06]
[1765989482826,0.3723473,86628.0,86625.0,3.2e-06]
[1765989483136,0.0115494,86613.0,86587.0,0.0115526]
[1765989483345,0.19413,86598.0,86590.0,0.0115522]
[1765989483531,0.3608,86608.0,86594.0,0.3608]
[1765989484740,0.3608,86608.0,86583.0,0.3658]
[1765989484741,0.3608,86600.0,86575.0,0.3608]
[1765989485040,0.3608,86577.0,86566.0,0.3608]
[1765989485433,0.3723532,86584.0,86566.0,0.3608]
[1765989485629,0.3608,86575.0,86566.0,0.0001732]
[1765989485829,0.37363495,86575.0,86566.0,0.0001732]
[1765989486027,0.3608,86567.0,86554.0,0.3608]
[1765989486443,0.3608,86567.0,86550.0,0.23871243]
[1765989486640,0.3608,86567.0,86566.0,0.001]
[1765989486839,0.0001732,86584.0,86566.0,0.3733555]
[1765989487044,0.0001732,86584.0,86573.0,0.3608]
[1765989487439,0.3608,86597.0,86566.0,0.00011912]
[1765989487629,0.3608,86589.0,86580.0,0.22704148]
[1765989487834,0.3608,86593.0,86580.0,0.58784148]